bitfinex/quotes_BTCUSD_20250109
["timestamp","ask_amount","ask_price","bid_price","bid_amount"]
[1736464566038,0.21606,92567.0,92561.0,0.001]
[1736464566485,0.21606,92567.0,92558.0,0.0468]
[1736464566889,0.21606,92567.0,92558.0,0.0478]
[1736464567296,0.21605,92571.0,92559.0,0.216078]
[1736464567495,0.15470066,92572.0,92559.0,0.216078]
[1736464567695,0.15470066,92572.0,92563.0,0.216068]
[1736464568100,0.13471679,92572.0,92567.0,0.216059]
[1736464568311,0.13471679,92572.0,92571.0,0.21605]
[1736464568506,0.216017,92585.0,92568.0,0.216057]
[1736464568507,0.26943358,92580.0,92568.0,0.216057]
[1736464568883,0.26943358,92580.0,92572.0,0.216046]
[1736464569428,0.26943358,92580.0,92572.0,0.20704598]
[1736464570544,0.26943358,92580.0,92572.0,0.20504598]
[1736464570818,0.13471679,92580.0,92577.0,0.216036]
[1736464571084,0.13471679,92582.0,92571.0,0.216048]
[1736464571295,0.13471679,92581.0,92571.0,0.216048]
[1736464571764,0.35074479,92581.0,92571.0,0.216048]
[1736464571974,0.002,92580.0,92571.0,0.216048]
[1736464572148,0.35074479,92581.0,92571.0,0.216048]
[1736464572573,0.13471679,92581.0,92571.0,0.216048]
[1736464573150,0.001,92580.0,92571.0,0.216048]
[1736464573563,0.001,92580.0,92575.0,0.21604]
[1736464574377,0.005,92581.0,92575.0,0.20703998]
[1736464574586,0.13471679,92582.0,92575.0,0.20703998]
[1736464574885,0.13471679,92582.0,92575.0,0.20903998]
[1736464575084,0.13471679,92582.0,92576.0,0.216038]
[1736464575301,0.13471679,92582.0,92571.0,0.216048]
[1736464575531,0.13471679,92582.0,92575.0,0.21904]
[1736464575820,0.13471679,92582.0,92575.0,0.21604]
[1736464576194,0.13471679,92582.0,92575.0,0.21904]
[1736464577389,0.13471679,92582.0,92575.0,0.002]
[1736464577621,0.216035,92578.0,92575.0,0.002]
[1736464577872,0.216035,92578.0,92575.0,0.001]
[1736464578052,0.216035,92578.0,92575.0,0.002]
[1736464578254,0.216038,92576.0,92575.0,0.001]
[1736464578495,0.15,92580.0,92557.0,8.52e-05]
[1736464578743,0.216072,92562.0,92557.0,8.52e-05]
[1736464578943,0.21608,92558.0,92557.0,8.52e-05]
[1736464579370,0.21608,92558.0,92543.0,0.20719818]
[1736464579371,0.216092,92554.0,92543.0,0.20719818]
[1736464579577,0.13471679,92553.0,92543.0,0.20719818]
[1736464579800,0.13471679,92553.0,92547.0,0.216106]
[1736464579918,0.13471679,92553.0,92551.0,0.216096]
[1736464580118,0.216077,92560.0,92551.0,0.216096]
[1736464580337,0.216077,92560.0,92547.0,0.216106]
[1736464580553,0.21608,92558.0,92557.0,0.002]
[1736464581196,0.21608,92558.0,92545.0,0.216109]
[1736464581407,0.13471679,92555.0,92547.0,0.001]
[1736464581818,0.13471679,92555.0,92545.0,0.216109]
[1736464583680,0.13471679,92555.0,92543.0,0.216113]
[1736464583886,0.13471679,92555.0,92539.0,0.216124]
[1736464584302,0.13471679,92550.0,92545.0,0.001]
[1736464584504,0.216101,92549.0,92535.0,0.216134]
[1736464584710,0.13471679,92550.0,92535.0,0.216134]
[1736464584711,0.13471679,92550.0,92539.0,0.216125]
[1736464584921,0.13471679,92550.0,92543.0,0.216115]
[1736464585265,0.13471679,92550.0,92548.0,0.216101]
[1736464585519,0.216083,92557.0,92541.0,0.21612]
[1736464585716,0.13471679,92550.0,92541.0,0.21612]
[1736464585920,0.13471679,92550.0,92542.0,0.10429976]
[1736464586175,0.13471679,92570.0,92543.0,0.02408049]
[1736464586387,0.216044,92574.0,92560.0,0.216074]
[1736464586588,0.216044,92574.0,92560.0,0.32037376]
[1736464586796,0.432088,92574.0,92560.0,0.32037376]
[1736464587005,0.216044,92574.0,92561.0,0.216073]
[1736464587340,0.13471679,92571.0,92561.0,0.432146]
[1736464587540,0.13471679,92571.0,92561.0,0.431146]
[1736464587749,0.13471679,92571.0,92547.0,0.00808]
[1736464587750,0.13471679,92571.0,92555.0,0.216086]
[1736464587904,0.13471679,92565.0,92556.0,0.10429976]
[1736464588733,0.13471679,92565.0,92560.0,0.216075]
[1736464589162,0.13971679,92565.0,92560.0,0.216075]
[1736464589354,0.13971679,92565.0,92557.0,0.216083]
[1736464589355,0.13971679,92565.0,92557.0,0.20708298]
[1736464589567,0.13971679,92565.0,92557.0,0.31138274]
[1736464590497,0.13871679,92565.0,92557.0,0.52746574]
[1736464590703,0.13471679,92565.0,92560.0,0.001]
[1736464591129,0.432138,92563.0,92560.0,0.001]
[1736464591338,0.216084,92557.0,92550.0,0.0482]
[1736464591549,0.216073,92561.0,92557.0,0.001]
[1736464591760,0.00083734,92558.0,92557.0,0.001]
[1736464591967,0.00083734,92558.0,92532.0,8.52e-05]
[1736464592177,0.13471679,92548.0,92532.0,8.52e-05]
[1736464592351,0.216119,92542.0,92532.0,8.52e-05]
[1736464592576,0.432238,92542.0,92532.0,8.52e-05]
[1736464593070,0.21694334,92547.0,92532.0,8.52e-05]
[1736464593275,0.00083734,92547.0,92532.0,0.2162252]
[1736464593478,0.13471679,92550.0,92539.0,0.10429976]
[1736464593910,0.13471679,92550.0,92545.0,0.21611]
[1736464594083,0.13471679,92550.0,92546.0,0.0789]
[1736464594323,0.35080279,92556.0,92546.0,0.0789]
[1736464594491,0.35080279,92556.0,92545.0,0.21611]
[1736464594710,0.37063224,92556.0,92545.0,0.21611]
[1736464595265,0.58671824,92556.0,92541.0,0.21612]
[1736464595474,0.216105,92548.0,92532.0,0.2162242]
[1736464595685,0.13471679,92551.0,92532.0,8.52e-05]
[1736464595686,0.216116,92543.0,92532.0,8.52e-05]
[1736464595898,0.216107,92547.0,92532.0,0.2162252]
[1736464597000,0.216107,92547.0,92536.0,0.21613]
[1736464597215,0.216116,92543.0,92532.0,0.2162252]
[1736464598081,0.216113,92545.0,92532.0,0.2162252]
[1736464598284,0.216101,92549.0,92538.0,0.21627245]
[1736464598700,0.002,92543.0,92538.0,0.21627245]
[1736464598884,0.216101,92549.0,92538.0,0.21627245]
[1736464599289,0.001,92543.0,92538.0,0.21627245]
[1736464599445,0.001,92543.0,92538.0,0.20727243]
[1736464599844,0.001,92543.0,92538.0,0.42339743]
[1736464600052,0.001,92543.0,92538.0,0.20727243]
[1736464600518,0.35081479,92551.0,92538.0,0.20727243]
[1736464600731,0.35081479,92551.0,92538.0,0.20927243]
[1736464601149,0.13471679,92550.0,92538.0,0.20927243]
[1736464601353,0.217101,92549.0,92538.0,0.20727243]
[1736464601601,0.0826,92548.0,92538.0,0.42339943]
[1736464601798,0.23389976,92548.0,92532.0,8.52e-05]
[1736464602010,0.13471679,92543.0,92532.0,8.52e-05]
[1736464602214,0.216136,92535.0,92532.0,8.52e-05]
[1736464603989,0.00085035,92534.0,92532.0,8.52e-05]
[1736464604393,0.216154,92527.0,92517.0,0.25438578]
[1736464604614,0.35087079,92527.0,92518.0,0.10429976]
[1736464604793,0.35087079,92527.0,92517.0,0.03821078]
[1736464604794,0.35087079,92527.0,92517.0,0.14251054]
[1736464605537,0.13571679,92527.0,92517.0,0.14251054]
[1736464606361,0.13571679,92527.0,92517.0,0.14451054]
[1736464606788,0.13571679,92527.0,92517.0,0.14251054]
[1736464606997,0.13471679,92527.0,92517.0,0.14251054]
[1736464607212,0.13471679,92527.0,92524.0,0.216159]
[1736464607420,0.001,92527.0,92526.0,0.216155]
[1736464607592,0.001,92527.0,92526.0,0.32045476]
[1736464608253,0.13471679,92540.0,92527.0,0.1291]
[1736464608463,0.13471679,92540.0,92535.0,0.215134]
[1736464608983,0.13471679,92540.0,92535.0,0.214134]
[1736464609413,0.13471679,92540.0,92528.0,0.10429976]
[1736464609631,0.0001475,92548.0,92547.0,0.216106]
[1736464609837,0.0001475,92548.0,92544.0,0.216111]
[1736464610043,0.0001475,92548.0,92544.0,0.32041076]
[1736464610248,0.0001475,92548.0,92546.0,0.216108]
[1736464610453,0.0001475,92548.0,92547.0,0.10429976]
[1736464611333,0.0001475,92548.0,92547.0,0.10229976]
[1736464611984,0.0001475,92548.0,92547.0,0.10429976]
[1736464612189,0.0001475,92548.0,92547.0,0.15358014]
[1736464612593,0.0001475,92548.0,92547.0,0.15249976]
[1736464613023,0.0001475,92548.0,92547.0,0.15349976]
[1736464614267,0.0001475,92548.0,92547.0,0.14449974]
[1736464615585,0.0001475,92548.0,92547.0,0.003]
[1736464619361,0.0001475,92548.0,92546.0,0.21010798]
[1736464619568,0.0001475,92548.0,92546.0,0.31440774]
[1736464620513,0.0001475,92548.0,92547.0,0.216106]
[1736464620939,0.13471679,92557.0,92547.0,0.216106]
[1736464621683,0.13471679,92557.0,92551.0,0.216096]
[1736464622041,0.13671679,92557.0,92551.0,0.216096]
[1736464622450,0.13671679,92557.0,92555.0,0.216087]
[1736464622852,0.002,92557.0,92555.0,0.216087]
[1736464623096,0.003,92557.0,92555.0,0.216087]
[1736464623605,0.002,92557.0,92555.0,0.216087]
[1736464623830,0.13471679,92565.0,92560.0,0.216075]
[1736464624037,0.003,92557.0,92556.0,0.216085]
[1736464624447,0.001,92557.0,92556.0,0.25458498]
[1736464624843,0.001,92557.0,92538.0,0.432253]
[1736464625049,0.15,92541.0,92537.0,0.0001475]
[1736464625253,0.15,92547.0,92537.0,0.0001475]
[1736464625452,0.13471679,92548.0,92537.0,0.0001475]
[1736464625453,0.15,92539.0,92537.0,0.0001475]
[1736464625805,0.366127,92538.0,92537.0,0.0001475]
[1736464626050,0.36698527,92538.0,92537.0,0.0001475]
[1736464627796,0.38323985,92538.0,92537.0,0.0001475]
[1736464628572,0.23323985,92538.0,92537.0,0.0011475]
[1736464628780,0.216122,92540.0,92537.0,0.0011475]
[1736464628978,0.001,92538.0,92537.0,0.0001475]
[1736464629304,0.001,92538.0,92524.0,0.20730748]
[1736464629500,0.001,92538.0,92526.0,0.291453]
[1736464629706,0.001,92538.0,92530.0,0.216143]
[1736464630028,0.001,92538.0,92532.0,0.216141]
[1736464630228,0.13471679,92540.0,92533.0,0.10429976]
[1736464630636,0.001,92538.0,92533.0,0.10429976]
[1736464630847,0.13471679,92540.0,92533.0,0.10429976]
[1736464631197,0.001,92538.0,92533.0,0.10429976]
[1736464631403,0.13471679,92540.0,92533.0,0.10429976]
[1736464632223,0.001,92538.0,92533.0,0.10429976]
[1736464632428,0.001,92538.0,92533.0,0.10629976]
[1736464632801,0.001,92538.0,92533.0,0.10429976]
[1736464633252,0.001,92538.0,92533.0,0.10529976]
[1736464633826,0.13471679,92540.0,92533.0,0.10529976]
[1736464634235,0.13471679,92540.0,92533.0,0.10729976]
[1736464634457,0.13471679,92540.0,92533.0,0.09629974]
[1736464634655,0.13471679,92540.0,92533.0,0.09529974]
[1736464634875,0.13471679,92540.0,92533.0,0.09729974]
[1736464635064,0.13471679,92540.0,92533.0,0.10029974]
[1736464635236,0.216108,92547.0,92534.0,0.216136]
[1736464635574,0.13471679,92544.0,92535.0,0.10429976]
[1736464636115,0.216108,92547.0,92535.0,0.10429976]
[1736464636314,0.216117,92543.0,92535.0,0.10429976]
[1736464638018,0.216117,92543.0,92535.0,0.10529976]
[1736464638763,0.216117,92543.0,92535.0,0.10629976]
[1736464639392,0.216117,92543.0,92535.0,0.09729974]
[1736464639610,0.13471679,92550.0,92536.0,0.0465]
[1736464639813,0.13471679,92550.0,92541.0,0.216119]
[1736464640025,0.13471679,92550.0,92541.0,0.32041876]
[1736464640429,0.15101136,92550.0,92542.0,0.0775]
[1736464640848,0.15101136,92550.0,92543.0,0.216115]
[1736464641835,0.21608,92559.0,92547.0,0.216104]
[1736464642040,0.216062,92566.0,92543.0,0.06605338]
[1736464642041,0.13471679,92570.0,92549.0,0.1235]
[1736464642250,0.01607984,92569.0,92562.0,0.216069]
[1736464642477,0.13471679,92570.0,92550.0,0.10429976]
[1736464642750,0.13471679,92570.0,92559.0,0.216077]
[1736464643034,0.13471679,92570.0,92567.0,0.216059]
[1736464643281,0.01631751,92576.0,92564.0,0.292864]
[1736464643535,0.13471679,92574.0,92565.0,0.10429976]
[1736464643784,0.00012789,92576.0,92565.0,0.10429976]
[1736464644283,0.004,92570.0,92565.0,0.10429976]
[1736464644481,0.004,92570.0,92565.0,0.09529974]
[1736464644658,0.216041,92575.0,92565.0,0.09529974]
[1736464645769,0.216041,92575.0,92565.0,0.09629974]
[1736464646711,0.00012789,92576.0,92565.0,0.09629974]
[1736464646974,0.00012789,92576.0,92566.0,0.216062]
[1736464647480,0.216041,92575.0,92565.0,0.09529974]
[1736464648760,0.216041,92575.0,92565.0,0.09629974]
[1736464649400,0.216041,92575.0,92565.0,0.001]
[1736464650396,0.216041,92575.0,92564.0,0.0768]
[1736464650536,0.13471679,92574.0,92565.0,0.001]
[1736464651167,0.13471679,92574.0,92564.0,0.39716576]
[1736464651399,0.13471679,92574.0,92565.0,0.001]
[1736464651797,0.216045,92573.0,92564.0,0.18109976]
[1736464652157,0.13471679,92574.0,92564.0,0.18109976]
[1736464652718,0.216045,92573.0,92564.0,0.18109976]
[1736464652937,0.216045,92573.0,92565.0,0.001]
[1736464653151,0.216053,92570.0,92565.0,0.001]
[1736464653360,0.432106,92570.0,92565.0,0.001]
[1736464653538,0.216057,92568.0,92565.0,0.001]
[1736464653741,0.432114,92568.0,92565.0,0.001]
[1736464653961,0.432114,92568.0,92551.0,0.00108036]
[1736464654101,0.216057,92568.0,92552.0,0.1602282]
[1736464654303,0.216057,92568.0,92554.0,0.20808898]
[1736464655319,0.01680483,92576.0,92556.0,0.216085]
[1736464655531,0.01680483,92576.0,92568.0,0.216055]
[1736464655937,0.01680483,92576.0,92564.0,0.216065]
[1736464655938,0.00012789,92576.0,92564.0,0.216065]
[1736464656146,0.00012789,92576.0,92552.0,0.00808]
[1736464656147,0.00012789,92576.0,92573.0,0.43209]
[1736464656354,0.00012789,92576.0,92575.0,0.216041]
[1736464656570,0.00012789,92576.0,92575.0,0.32034076]
[1736464657536,0.00112789,92576.0,92575.0,0.32034076]
[1736464657890,0.00012789,92576.0,92575.0,0.32034076]
[1736464658103,0.00012789,92576.0,92575.0,0.10429976]
[1736464658324,0.00012789,92576.0,92575.0,0.10529976]
[1736464659383,0.00012789,92576.0,92575.0,0.09629974]
[1736464664392,0.00012789,92576.0,92575.0,0.08729972]
[1736464665107,0.00012789,92576.0,92575.0,0.23439972]
[1736464666307,0.00012789,92576.0,92575.0,0.23339972]
[1736464666674,0.00012789,92576.0,92575.0,0.23639972]
[1736464667093,0.00012789,92576.0,92575.0,0.23339972]
[1736464667345,0.00012789,92576.0,92575.0,0.33155519]
[1736464667643,0.00012789,92576.0,92575.0,0.23839972]
[1736464667811,0.00012789,92576.0,92575.0,0.48839972]
[1736464669410,0.00012789,92576.0,92575.0,0.5793997]
[1736464670039,0.0001706,92586.0,92585.0,0.1]
[1736464670301,0.0001706,92586.0,92585.0,0.6022795]
[1736464670557,6e-07,92586.0,92585.0,0.70463181]
[1736464671329,6e-07,92586.0,92585.0,0.71063181]
[1736464672555,6e-07,92586.0,92585.0,0.70463181]
[1736464673393,6e-07,92586.0,92585.0,0.71063181]
[1736464674799,6e-07,92586.0,92585.0,0.73625256]
[1736464675121,6e-07,92586.0,92585.0,0.43282051]
[1736464675332,6e-07,92586.0,92585.0,0.41547976]
[1736464676509,6e-07,92586.0,92585.0,0.40947976]
[1736464676725,6e-07,92586.0,92585.0,0.39047976]
[1736464676890,6e-07,92586.0,92585.0,0.24047976]
[1736464677301,6e-07,92586.0,92585.0,0.23647976]
[1736464677524,6e-07,92586.0,92585.0,0.10929976]
[1736464678522,0.2160156,92586.0,92585.0,0.005]
[1736464678749,0.29681579,92586.0,92563.0,0.216068]
[1736464678954,0.13471679,92573.0,92564.0,0.216066]
[1736464679124,0.13471679,92573.0,92565.0,0.216064]
[1736464679327,0.13471679,92580.0,92568.0,0.20705498]
[1736464679727,0.216031,92579.0,92568.0,0.20705498]
[1736464680658,0.26943358,92580.0,92568.0,0.20705498]
[1736464680860,0.26943358,92580.0,92573.0,0.216044]
[1736464680861,0.13471679,92580.0,92573.0,0.216044]
[1736464681283,0.13471679,92580.0,92569.0,0.216055]
[1736464681543,0.13471679,92580.0,92576.0,0.216037]
[1736464681709,0.24079906,92586.0,92576.0,0.216037]
[1736464681875,0.03465767,92586.0,92576.0,0.216037]
[1736464682795,0.03465767,92586.0,92576.0,0.432075]
[1736464683004,0.03565767,92586.0,92576.0,0.432075]
[1736464683207,0.03565767,92586.0,92578.0,0.216034]
[1736464683422,0.03565767,92586.0,92579.0,0.10429976]
[1736464683628,0.03565767,92586.0,92585.0,0.216017]
[1736464683841,0.001,92586.0,92585.0,0.32031676]
[1736464684454,0.001,92586.0,92585.0,0.31131674]
[1736464684949,0.00104928,92586.0,92585.0,0.38565471]
[1736464685149,0.00104928,92586.0,92585.0,0.31131674]
[1736464685291,4.928e-05,92586.0,92585.0,0.31131674]
[1736464685891,0.00104928,92586.0,92585.0,0.31131674]
[1736464686097,0.00104928,92586.0,92585.0,0.58431674]
[1736464686243,4.928e-05,92586.0,92585.0,0.66845471]
[1736464686451,4.928e-05,92586.0,92585.0,0.31231674]
[1736464687042,4.928e-05,92586.0,92585.0,0.31131674]
[1736464687221,4.928e-05,92586.0,92585.0,0.31531674]
[1736464688880,0.00104928,92586.0,92585.0,0.32231674]
[1736464689162,4.928e-05,92586.0,92585.0,0.48431674]
[1736464689363,4.928e-05,92586.0,92585.0,0.46131674]
[1736464689592,0.00104928,92586.0,92585.0,0.53567601]
[1736464689918,0.00104928,92586.0,92585.0,0.53367601]
[1736464690128,0.2006222,92610.0,92586.0,0.15]
[1736464690368,0.2006222,92610.0,92595.0,0.215994]
[1736464690564,0.47005578,92610.0,92597.0,0.215989]
[1736464691320,0.47005578,92610.0,92597.0,0.214989]
[1736464691960,0.47005578,92610.0,92597.0,0.216989]
[1736464693737,0.11690941,92610.0,92597.0,0.216989]
[1736464694321,0.11690941,92610.0,92601.0,0.215979]
[1736464694525,0.11690941,92610.0,92602.0,0.03438782]
[1736464695135,0.11690941,92610.0,92603.0,0.215975]
[1736464695285,0.0001704,92613.0,92604.0,0.215973]
[1736464695851,0.0001704,92613.0,92609.0,0.21596]
[1736464696003,0.0001704,92613.0,92610.0,0.10429976]
[1736464696224,0.0001704,92613.0,92611.0,0.03202598]
[1736464696410,0.0001704,92613.0,92612.0,0.10429976]
[1736464697046,0.0011704,92613.0,92603.0,0.215973]
[1736464697252,0.27131731,92613.0,92591.0,0.216003]
[1736464697447,0.13471679,92601.0,92592.0,0.32030076]
[1736464698172,0.00071333,92600.0,92583.0,0.216022]
[1736464698375,0.00071333,92600.0,92577.0,0.0772]
[1736464698578,0.13471679,92587.0,92577.0,0.18149976]
[1736464698787,0.13471679,92587.0,92577.0,0.0772]
[1736464698995,0.13471679,92587.0,92583.0,0.21602]
[1736464699198,0.13471679,92593.0,92583.0,0.21602]
[1736464699419,0.13471679,92593.0,92583.0,0.45375214]
[1736464699627,0.13571679,92600.0,92589.0,0.216007]
[1736464699842,0.13571679,92600.0,92593.0,0.215998]
[1736464700090,0.13471679,92600.0,92593.0,0.215998]
[1736464700850,0.13471679,92600.0,92593.0,0.214998]
[1736464701267,0.13471679,92600.0,92593.0,0.216998]
[1736464701509,0.13471679,92600.0,92593.0,0.002]
[1736464702217,0.13471679,92600.0,92594.0,0.215996]
[1736464702867,0.13571679,92600.0,92594.0,0.215996]
[1736464703475,0.13471679,92600.0,92594.0,0.215996]
[1736464703847,0.13471679,92600.0,92591.0,0.216003]
[1736464704051,0.13471679,92600.0,92570.0,0.216052]
[1736464704270,0.13471679,92580.0,92571.0,0.10429976]
[1736464704463,0.13471679,92580.0,92571.0,0.09529974]
[1736464704967,0.13471679,92580.0,92577.0,0.216035]
[1736464705181,0.13471679,92590.0,92585.0,0.216017]
[1736464705391,0.13471679,92600.0,92591.0,0.216003]
[1736464706406,0.13471679,92610.0,92592.0,0.10429976]
[1736464706624,0.13471679,92610.0,92604.0,0.215971]
[1736464706887,0.0001704,92613.0,92597.0,0.214988]
[1736464707080,0.0001704,92613.0,92592.0,0.15309976]
[1736464707081,0.0001704,92613.0,92606.0,0.215967]
[1736464707496,0.0001704,92613.0,92610.0,0.431916]
[1736464707735,0.0001704,92613.0,92610.0,0.215958]
[1736464707918,0.00029816,92613.0,92610.0,0.215958]
[1736464708481,0.00029816,92613.0,92610.0,0.214958]
[1736464709336,0.00129816,92613.0,92610.0,0.20595798]
[1736464710900,0.00129816,92613.0,92610.0,0.52621574]
[1736464711305,0.00129816,92613.0,92610.0,0.60043431]
[1736464711511,0.00129816,92613.0,92612.0,0.215954]
[1736464711724,0.00129816,92613.0,92612.0,0.32025376]
[1736464711972,0.00029816,92613.0,92612.0,0.32025376]
[1736464712403,0.00129816,92613.0,92612.0,0.32025376]
[1736464712608,0.00029816,92613.0,92612.0,0.32025376]
[1736464713753,0.00029816,92613.0,92612.0,0.10429976]
[1736464714002,0.00029816,92613.0,92607.0,0.215966]
[1736464714138,0.00129816,92613.0,92612.0,0.008]
[1736464714340,0.00129816,92613.0,92611.0,0.21495498]
[1736464714958,0.00029816,92613.0,92612.0,0.002]
[1736464715163,0.00129816,92613.0,92612.0,0.002]
[1736464715643,0.00029816,92613.0,92611.0,0.21495498]
[1736464715843,0.00129816,92613.0,92611.0,0.22495498]
[1736464716797,0.00129816,92613.0,92611.0,0.22295498]
[1736464716986,0.00129816,92613.0,92612.0,0.002]
[1736464717191,0.00029816,92613.0,92612.0,0.002]
[1736464717370,0.00129816,92613.0,92612.0,0.003]
[1736464717767,0.00029816,92613.0,92612.0,0.002]
[1736464717947,0.00129816,92613.0,92612.0,0.002]
[1736464718449,0.00029816,92613.0,92592.0,0.075]
[1736464718601,0.13471679,92602.0,92596.0,0.215991]
[1736464719024,0.13471679,92610.0,92600.0,0.215981]
[1736464719585,0.215961,92609.0,92600.0,0.20698098]
[1736464719986,0.13471679,92610.0,92608.0,0.215963]
[1736464720196,0.00029816,92613.0,92608.0,0.215963]
[1736464720397,0.00129816,92613.0,92601.0,0.215978]
[1736464720604,0.13471679,92611.0,92601.0,0.215978]
[1736464721790,0.13471679,92611.0,92592.0,0.075]
[1736464722041,0.13471679,92611.0,92605.0,0.21597]
[1736464723316,0.13471679,92611.0,92602.0,0.215976]
[1736464723528,0.13547389,92611.0,92593.0,0.10429976]
[1736464723745,0.13471679,92603.0,92593.0,0.10429976]
[1736464723917,0.13471679,92603.0,92598.0,0.215985]
[1736464724323,0.13471679,92603.0,92598.0,0.20698498]
[1736464725849,0.27019322,92610.0,92593.0,0.215999]
[1736464726061,0.13547643,92603.0,92577.0,0.00808]
[1736464726270,0.13471679,92590.0,92577.0,0.11237976]
[1736464726413,0.13471679,92590.0,92583.0,0.216022]
[1736464727160,0.13471679,92590.0,92579.0,0.216031]
[1736464727575,0.13471679,92590.0,92583.0,0.217021]
[1736464727952,0.13471679,92590.0,92583.0,0.216021]
[1736464728179,0.13471679,92590.0,92583.0,0.217021]
[1736464728664,0.13471679,92590.0,92587.0,0.216011]
[1736464728876,0.13471679,92597.0,92591.0,0.216003]
[1736464729330,0.13471679,92597.0,92591.0,0.20700298]
[1736464729822,0.13471679,92597.0,92595.0,0.215992]
[1736464730030,0.0323686,92602.0,92584.0,0.21602]
[1736464730258,0.215969,92606.0,92592.0,0.215999]
[1736464730490,0.13471679,92602.0,92592.0,0.215999]
[1736464730802,0.35069679,92602.0,92590.0,0.216005]
[1736464731034,0.00076241,92601.0,92590.0,0.216005]
[1736464732244,0.215982,92600.0,92586.0,0.216015]
[1736464732446,0.13471679,92596.0,92586.0,0.32031476]
[1736464732651,0.13471679,92596.0,92586.0,0.53632976]
[1736464732852,0.13455345,92596.0,92586.0,0.53632976]
[1736464733276,0.13455345,92596.0,92586.0,0.32031476]
[1736464733511,0.13455345,92596.0,92590.0,0.216005]
[1736464734346,0.075,92595.0,92557.0,0.216082]
[1736464734554,0.26943358,92584.0,92561.0,0.0495]
[1736464734872,0.13471679,92580.0,92572.0,0.216048]
[1736464735165,0.13471679,92580.0,92576.0,0.216038]
[1736464735610,0.216016,92586.0,92565.0,0.216064]
[1736464735611,0.13471679,92586.0,92577.0,0.10429976]
[1736464735787,0.13471679,92590.0,92588.0,0.216009]
[1736464736005,0.21599,92597.0,92588.0,0.216009]
[1736464736141,0.13471679,92598.0,92588.0,0.216009]
[1736464736964,0.13471679,92598.0,92588.0,0.217009]
[1736464737169,0.13471679,92598.0,92588.0,0.216009]
[1736464737611,0.13571679,92598.0,92588.0,0.216009]
[1736464737808,0.13571679,92598.0,92584.0,0.216017]
[1736464737809,0.215989,92597.0,92584.0,0.216017]
[1736464738039,0.215989,92597.0,92584.0,0.32031676]
[1736464738866,0.215989,92597.0,92584.0,0.53633576]
[1736464739066,0.13571679,92598.0,92588.0,0.216009]
[1736464739528,0.001,92597.0,92588.0,0.20700898]
[1736464740334,0.001,92597.0,92567.0,0.0824]
[1736464740335,0.075,92592.0,92567.0,0.0824]
[1736464740511,0.13471679,92580.0,92574.0,0.216041]
[1736464740717,0.13471679,92580.0,92578.0,0.216033]
[1736464740920,0.35072879,92588.0,92578.0,0.216033]
[1736464742088,0.35072879,92588.0,92574.0,0.216041]
[1736464742321,0.35072879,92588.0,92578.0,0.001]
[1736464743127,0.001,92580.0,92578.0,0.217032]
[1736464743699,0.001,92580.0,92578.0,0.218032]
[1736464743909,0.001,92580.0,92578.0,0.001]
[1736464744119,0.35072879,92588.0,92574.0,0.216041]
[1736464744327,0.001,92580.0,92574.0,0.20904098]
[1736464744918,0.001,92580.0,92574.0,0.20804098]
[1736464745149,0.001,92580.0,92578.0,0.002]
[1736464745534,0.001,92580.0,92572.0,0.216046]
[1736464745735,0.001,92580.0,92575.0,0.216038]
[1736464746219,0.13471679,92590.0,92576.0,0.10429976]
[1736464746430,0.13471679,92584.0,92577.0,0.216036]
[1736464746566,0.13471679,92584.0,92577.0,0.10429976]
[1736464746776,0.13471679,92584.0,92575.0,0.216041]
[1736464747220,0.001,92580.0,92576.0,0.216038]
[1736464747425,0.13471679,92584.0,92579.0,0.21603]
[1736464747883,0.13571679,92584.0,92579.0,0.21603]
[1736464748021,0.13471679,92584.0,92579.0,0.21603]
[1736464749365,0.13471679,92584.0,92579.0,0.21703]
[1736464749570,0.001,92580.0,92579.0,0.20802998]
[1736464749778,0.13471679,92589.0,92579.0,0.20802998]
[1736464750203,0.001,92584.0,92579.0,0.20802998]
[1736464750647,0.13471679,92589.0,92579.0,0.20702998]
[1736464750858,0.001,92580.0,92579.0,0.20902998]
[1736464751265,0.13471679,92589.0,92579.0,0.20702998]
[1736464751494,0.001,92584.0,92579.0,0.20702998]
[1736464751694,0.001,92584.0,92579.0,0.20802998]
[1736464752083,0.001,92584.0,92579.0,0.20702998]
[1736464752747,0.13471679,92589.0,92579.0,0.20702998]
[1736464752957,0.001,92580.0,92579.0,0.20902998]
[1736464753415,0.001,92580.0,92579.0,0.20702998]
[1736464753649,0.001,92580.0,92579.0,0.20902998]
[1736464753802,0.001,92580.0,92579.0,0.48003654]
[1736464753990,0.13471679,92610.0,92597.0,0.0774]
[1736464754168,0.13471679,92610.0,92597.0,0.0764]
[1736464754370,0.215961,92609.0,92597.0,0.06739998]
[1736464755015,0.215961,92609.0,92598.0,0.215987]
[1736464755219,0.13471679,92610.0,92598.0,0.2659251]
[1736464755438,0.13471679,92610.0,92604.0,0.215971]
[1736464755642,0.002,92609.0,92608.0,0.215962]
[1736464755858,0.002,92609.0,92599.0,0.047]
[1736464756060,0.002,92609.0,92605.0,0.21597]
[1736464756677,0.00206389,92609.0,92605.0,0.21597]
[1736464757296,6.389e-05,92609.0,92605.0,0.21797]
[1736464757766,6.389e-05,92609.0,92605.0,0.002]
[1736464759369,6.389e-05,92609.0,92597.0,0.28338698]
[1736464760233,6.389e-05,92609.0,92601.0,0.21598]
[1736464760475,6.389e-05,92609.0,92606.0,0.215967]
[1736464760875,6.389e-05,92609.0,92604.0,0.215971]
[1736464761082,6.389e-05,92609.0,92597.0,0.17169974]
[1736464761083,6.389e-05,92609.0,92608.0,0.215964]
[1736464761668,6.389e-05,92609.0,92600.0,0.215982]
[1736464761877,6.389e-05,92609.0,92601.0,0.21598]
[1736464763810,6.389e-05,92609.0,92601.0,0.21698]
[1736464764012,0.13471679,92611.0,92601.0,0.21698]
[1736464764425,0.13471679,92611.0,92601.0,0.42395998]
[1736464765431,0.13471679,92611.0,92604.0,0.215971]
[1736464766230,0.24354633,92615.0,92604.0,0.215971]
[1736464766686,0.04051029,92615.0,92608.0,0.215962]
[1736464766934,0.04051029,92615.0,92612.0,0.215954]
[1736464767185,0.0001704,92620.0,92598.0,0.10436365]
[1736464767186,0.0001704,92620.0,92614.0,0.21595]
[1736464767441,0.0001704,92620.0,92617.0,0.431883]
[1736464767924,0.0001704,92620.0,92619.0,0.215938]